Workbook

Sheet rat
D1: Valeurs aliments par kg MB
E2: Densité
D3: MS (%) | E3: kg/l | G3: MADC(g/kg) | I3: UFC (/kg) | J3: MADC/UFC | K3: P (g/kg) | L3: Ca (g/kg) | M3: Tarif TTC
B4: FOURRAGES
D5: 0 | G5: 0 | I5: 0 | K5: 0 | L5: 0 | M5: 90 e/tonne
B6: FOIN prairie 1er cyc fin mai | D6: 85 | G6: 55 | I6: 0.5 | K6: 2.7 | L6: 3.9 | M6: 90 e/tonne
B7: FOIN prairie 1er cyc mi-juin | D7: 85 | G7: 41 | I7: 0.45 | K7: 2.6 | L7: 3.6 | M7: 90 e/tonne
B8: FOIN prairie 1er cyc fin juin | D8: 85 | G8: 31 | I8: 0.39 | K8: 2.6 | L8: 3.3 | M8: 90 e/tonne
B9: FOIN prairie 2eme cyc | D9: 85 | G9: 68 | I9: 0.5 | K9: 2.7 | L9: 4.8 | M9: 90 e/tonne
B10: FOIN enrubanné | D10: 55 | G10: 29 | I10: 0.26 | K10: 1.7 | L10: 2.86 | M10: 120e/tonne
B21: LITIERES
B23: Paille de blé | D23: 88 | G23: 0 | I23: 0.26 | J23: =G23 -> 0 | K23: 0.88 | L23: 1.7 | M23: 70 e/tonne
B24: Paille d'orge | D24: 88 | G24: 0 | I24: 0.28 | J24: =G24 -> 0 | K24: 0.88 | L24: 1.7 | M24: 70 e/tonne
B25: Paille d'avoine | D25: 88 | G25: 0 | I25: 0.31 | J25: 0 | K25: 0.88 | L25: 1.7 | M25: 70 e/tonne
B30: CONCENTRES
B32: Orge | D32: 86.7 | E32: =1/1.74 -> 0.5747126437 | G32: 71 | I32: 0.99 | J32: =G32 -> 71 | K32: 3.5 | L32: 0.7 | M32: 0.24
B33: Orge aplatie | D33: 86.7 | E33: =1/2.75 -> 0.3636363636 | G33: 71 | I33: 0.99 | J33: 71 | K33: 3.5 | L33: 0.7 | M33: 0.25
B34: Avoine | D34: 88 | E34: =1/1.625 -> 0.6153846154 | G34: 69 | I34: 0.87 | J34: 69 | K34: 3.2 | L34: 1.1 | M34: 0.22
B35: Mais conc | D35: 86.4 | E35: =1/1.6 -> 0.625 | G35: 57 | I35: 1.12 | J35: 57 | K35: 2.6 | L35: 0.4 | M35: 0.32
B36: Triticale | D36: 87.3 | E36: =1/1.625 -> 0.6153846154 | G36: 67 | I36: 1.06 | J36: 67 | K36: 3.5 | L36: 0.7
B37: Tourteau soja 48 | D37: 87.8 | E37: =1/1.64 -> 0.6097560976 | G37: 383 | I37: 0.83 | J37: 383 | K37: 6.2 | L37: 3.4 | M37: 0.65
B38: Pulpe de bettrave deshydraté | D38: 89 | G38: 26 | I38: 0.76 | J38: 26 | K38: 0.9 | L38: 13 | M38: 0.4
B39: Son de blé | D39: 86.6 | G39: 122 | I39: 0.86 | J39: 122 | K39: 9.6 | L39: 1.4
B40: Luzerne dehy 17 | D40: 90.6 | E40: 0.675 | G40: 94 | I40: 0.54 | J40: 94 | K40: 2.3 | L40: 19.7 | M40: 0.35
B41: Blé dur | D41: 87.6 | E41: =1/1.625 -> 0.6153846154 | G41: 102 | I41: 1.06 | J41: 102 | K41: 3.4 | L41: 0.8 | M41: 0.22
B42: Huile | D42: 100 | E42: 1 | G42: 0 | I42: 2.96 | J42: 0 | K42: 0 | L42: 0 | M42: 1.5
B43: Granulé HN | D43: 88 | E43: =1/1.625 -> 0.6153846154 | G43: 80 | I43: 0.75 | J43: 80 | K43: 4.8 | L43: 8.8 | M43: 0.38
B44: Bouchons Evolution | D44: 88 | E44: 0.7 | G44: 103 | I44: 0.81 | J44: 103 | K44: 6 | L44: 12 | M44: 0.438
B45: Equida Mash | D45: 88 | E45: =1/2.5 -> 0.4 | G45: 79.81 | I45: 1.03 | J45: 79.81 | K45: 3.2 | L45: 0.7 | M45: 0.825
B46: Equida Elevage Plus | D46: 88 | E46: =1/2.78 -> 0.3597122302 | G46: 110.07 | I46: 0.84 | J46: 110.07 | K46: 5 | L46: 14.1 | M46: 0.91
B47: Granulé adult | D47: 88 | E47: 0.625 | G47: 73 | I47: 0.95 | J47: 73 | K47: 5 | L47: 10 | M47: 0.78
B48: Floconné Adult | D48: 88 | E48: 0.55 | G48: 82 | I48: 0.97 | J48: 82 | K48: 4.5 | L48: 8.5 | M48: 0.58
B51: MINERAUX
B53: Carb calcium 385-0 | D53: 100 | G53: 0 | I53: 0 | K53: 0 | L53: 385
B54: Lithotamne 340-35 | D54: 100 | G54: 0 | I54: 0 | K54: 35 | L54: 340
B55: Mineral perf 200-20 | D55: 100 | G55: 0 | I55: 0 | K55: 20 | L55: 200 | M55: 3.75
B56: Minboost 210-70 | D56: 96 | K56: 70 | L56: 210 | M56: 2.08
B57: Yearly mineral 150-50 | D57: 96 | K57: 50 | L57: 150 | M57: 4.5
B58: Mineral élevage 180-30 | D58: 96 | K58: 30 | L58: 180 | M58: 5

Sheet Feuil1
D1: Type cheval : | F1: adulte | K1: Nom cheval :
D2: Niveau : | F2: travail_intense | K2: Date :
D3: Poids : | F3: 600 | G3: Kg
D6: valeur nutritive des aliments par kg MB | H6: quantités distribuées | L6: apports nutritifs par aliment par jour | P6: prix /kg | Q6: prix/ jour
C7: % MS | D7: UFC | E7: MADC (g) | F7: Ca (g) | G7: P (g) | H7: en kg MB | K7: en litres | L7: UFC | M7: MADC (g) | N7: Ca (g) | O7: P (g) | R7: calcul MS
A8: Fourrages | B8: FOIN prairie 1er cyc fin juin | C8: =IF(B8=0,0,VLOOKUP(B8,rat!$B$5:$D$16,3,0)) -> 85 | D8: =IF(B8=0,0,VLOOKUP(B8,rat!$B$5:$I$16,8,0)) -> 0.39 | E8: =IF(B8=0,0,VLOOKUP(B8,rat!$B$5:$I$16,6,0)) -> 31 | F8: =IF(B8=0,0,VLOOKUP(B8,rat!$B$5:$M$17,11,0)) -> 3.3 | G8: =IF(B8=0,0,VLOOKUP(B8,rat!$B$5:$M$17,10,0)) -> 2.6 | H8: 6 | K8: / | L8: =H8*D8 -> 2.34 | M8: =H8*E8 -> 186 | N8: =H8*F8 -> 19.8 | O8: =H8*G8 -> 15.6 | P8: 0.15 | Q8: =H8*P8 -> 0.9 | R8: =H8*C8 -> 510
C9: =IF(B9=0,0,VLOOKUP(B9,rat!$B$5:$D$16,3,0)) -> 0 | D9: =IF(B9=0,0,VLOOKUP(B9,rat!$B$5:$I$16,8,0)) -> 0 | E9: =IF(B9=0,0,VLOOKUP(B9,rat!$B$5:$I$16,6,0)) -> 0 | F9: =IF(B9=0,0,VLOOKUP(B9,rat!$B$5:$M$17,11,0)) -> 0 | G9: =IF(B9=0,0,VLOOKUP(B9,rat!$B$5:$M$17,10,0)) -> 0 | K9: / | L9: =H9*D9 -> 0 | M9: =H9*E9 -> 0 | N9: =H9*F9 -> 0 | O9: =H9*G9 -> 0 | Q9: 0 | R9: =H9*C9 -> 0
C10: =IF(B10=0,0,VLOOKUP(B10,rat!$B$5:$D$16,3,0)) -> 0 | D10: =IF(B10=0,0,VLOOKUP(B10,rat!$B$5:$I$16,8,0)) -> 0 | E10: =IF(B10=0,0,VLOOKUP(B10,rat!$B$5:$I$16,6,0)) -> 0 | F10: =IF(B10=0,0,VLOOKUP(B10,rat!$B$5:$M$17,11,0)) -> 0 | G10: =IF(B10=0,0,VLOOKUP(B10,rat!$B$5:$M$17,10,0)) -> 0 | K10: / | L10: 0 | M10: 0 | N10: 0 | O10: 0 | Q10: 0 | R10: 0
A11: Concentrés | B11: Floconné Adult | C11: =IF(B11=0,0,VLOOKUP(B11,rat!$B$32:$M$50,3,0)) -> 88 | D11: =IF(B11=0,0,VLOOKUP(B11,rat!$B$32:$M$50,8,0)) -> 0.97 | E11: =IF(B11=0,0,VLOOKUP(B11,rat!$B$32:$M$50,6,0)) -> 82 | F11: =IF(B11=0,0,VLOOKUP(B11,rat!$B$32:$M$50,11,0)) -> 8.5 | G11: =IF(B11=0,0,VLOOKUP(B11,rat!$B$32:$M$50,10,0)) -> 4.5 | H11: 4.5 | L11: 4.365 | M11: 369 | N11: 38.25 | O11: 20.25 | Q11: 0 | R11: 396
B12: Huile | C12: =IF(B12=0,0,VLOOKUP(B12,rat!$B$32:$M$50,3,0)) -> 100 | D12: =IF(B12=0,0,VLOOKUP(B12,rat!$B$32:$M$50,8,0)) -> 2.96 | E12: =IF(B12=0,0,VLOOKUP(B12,rat!$B$32:$M$50,6,0)) -> 0 | F12: =IF(B12=0,0,VLOOKUP(B12,rat!$B$32:$M$50,11,0)) -> 0 | G12: =IF(B12=0,0,VLOOKUP(B12,rat!$B$32:$M$50,10,0)) -> 0 | H12: 0.5 | I12: =IF(#REF!=0,0,VLOOKUP(#REF!,rat!$B$30:$M$50,4,0)) ->  | J12: =IF(A12=0,0,VLOOKUP(A12,rat!$B$30:$M$50,4,0)) -> 0 | L12: 1.48 | M12: 0 | N12: 0 | O12: 0 | Q12: 0 | R12: 50
C13: =IF(B13=0,0,VLOOKUP(B13,rat!$B$32:$M$50,3,0)) -> 0 | D13: =IF(B13=0,0,VLOOKUP(B13,rat!$B$32:$M$50,8,0)) -> 0 | E13: =IF(B13=0,0,VLOOKUP(B13,rat!$B$32:$M$50,6,0)) -> 0 | F13: =IF(B13=0,0,VLOOKUP(B13,rat!$B$32:$M$50,11,0)) -> 0 | G13: =IF(B13=0,0,VLOOKUP(B13,rat!$B$32:$M$50,10,0)) -> 0 | H13: =IF(B13=0,0,VLOOKUP(B13,rat!$B$30:$M$50,4,0))*K13 -> 0 | I13: =IF(#REF!=0,0,VLOOKUP(#REF!,rat!$B$30:$M$50,4,0)) ->  | J13: =IF(A13=0,0,VLOOKUP(A13,rat!$B$30:$M$50,4,0)) -> 0 | L13: 0 | M13: 0 | N13: 0 | O13: 0 | Q13: 0 | R13: 0
C14: =IF(B14=0,0,VLOOKUP(B14,rat!$B$32:$M$50,3,0)) -> 0 | D14: =IF(B14=0,0,VLOOKUP(B14,rat!$B$31:$M$50,8,0)) -> 0 | E14: =IF(B14=0,0,VLOOKUP(B14,rat!$B$31:$M$50,6,0)) -> 0 | F14: =IF(B14=0,0,VLOOKUP(B14,rat!$B$32:$M$50,11,0)) -> 0 | G14: =IF(B14=0,0,VLOOKUP(B14,rat!$B$32:$M$50,10,0)) -> 0 | H14: =IF(B14=0,0,VLOOKUP(B14,rat!$B$30:$M$50,4,0))*K14 -> 0 | I14: =IF(#REF!=0,0,VLOOKUP(#REF!,rat!$B$30:$M$50,4,0)) ->  | J14: =IF(A14=0,0,VLOOKUP(A14,rat!$B$30:$M$50,4,0)) -> 0 | L14: 0 | M14: 0 | N14: 0 | O14: 0 | Q14: 0 | R14: 0
C15: =IF(B15=0,0,VLOOKUP(B15,rat!$B$32:$M$50,3,0)) -> 0 | D15: =IF(B15=0,0,VLOOKUP(B15,rat!$B$45:$M$50,8,0)) -> 0 | E15: =IF(B15=0,0,VLOOKUP(B15,rat!$B$45:$M$50,6,0)) -> 0 | F15: =IF(B15=0,0,VLOOKUP(B15,rat!$B$32:$M$50,11,0)) -> 0 | G15: =IF(B15=0,0,VLOOKUP(B15,rat!$B$32:$M$50,10,0)) -> 0 | H15: =IF(B15=0,0,VLOOKUP(B15,rat!$B$30:$M$50,4,0))*K15 -> 0 | I15: =IF(#REF!=0,0,VLOOKUP(#REF!,rat!$B$30:$M$50,4,0)) ->  | J15: =IF(A15=0,0,VLOOKUP(A15,rat!$B$30:$M$50,4,0)) -> 0 | L15: 0 | M15: 0 | N15: 0 | O15: 0 | Q15: 0 | R15: 0
C16: =IF(B16=0,0,VLOOKUP(B16,rat!$B$32:$M$50,3,0)) -> 0 | D16: =IF(B16=0,0,VLOOKUP(B16,rat!$B$45:$M$50,8,0)) -> 0 | E16: =IF(B16=0,0,VLOOKUP(B16,rat!$B$45:$M$50,6,0)) -> 0 | F16: =IF(B16=0,0,VLOOKUP(B16,rat!$B$32:$M$50,11,0)) -> 0 | G16: =IF(B16=0,0,VLOOKUP(B16,rat!$B$32:$M$50,10,0)) -> 0 | H16: =IF(B16=0,0,VLOOKUP(B16,rat!$B$30:$M$50,4,0))*K16 -> 0 | I16: =IF(#REF!=0,0,VLOOKUP(#REF!,rat!$B$30:$M$50,4,0)) ->  | J16: =IF(A16=0,0,VLOOKUP(A16,rat!$B$30:$M$50,4,0)) -> 0 | L16: 0 | M16: 0 | N16: 0 | O16: 0 | Q16: 0 | R16: 0
A17: Litière | B17: Paille de blé | C17: =IF(B17=0,0,VLOOKUP(B17,rat!$B$22:$M$26,3,0)) -> 88 | D17: =IF(B17=0,0,VLOOKUP(B17,rat!$B$22:$M$26,8,0)) -> 0.26 | E17: =IF(B17=0,0,VLOOKUP(B17,rat!$B$22:$M$26,6,0)) -> 0 | F17: =IF(B17=0,0,VLOOKUP(B17,rat!$B$22:$M$26,11,0)) -> 1.7 | G17: =IF(B17=0,0,VLOOKUP(B17,rat!$B$22:$M$26,10,0)) -> 0.88 | H17: 2 | K17: / | L17: 0.52 | M17: 0 | N17: 3.4 | O17: 1.76 | P17: 0.06 | Q17: 0.12 | R17: 176
K18: / | L18: 0 | M18: 0 | N18: 0 | O18: 0 | Q18: 0 | R18: 0
A19: CMV | F19: =IF(B19=0,0,VLOOKUP(B19,rat!$B$52:$M$59,11,0)) -> 0 | G19: =IF(B19=0,0,VLOOKUP(B19,rat!$B$52:$M$59,10,0)) -> 0 | H19: 0.115 | K19: / | L19: 0 | M19: 0 | N19: 0 | O19: 0 | Q19: 0 | R19: 0
F20: =IF(B20=0,0,VLOOKUP(B20,rat!$B$52:$M$59,11,0)) -> 0 | G20: =IF(B20=0,0,VLOOKUP(B20,rat!$B$52:$M$59,10,0)) -> 0 | H20: =IF(B20=0,0,(G30*SUM(O9:O19)-SUM(N9:N19))/(F20-G30*G20)) -> 0 | I20: =(1.7*39.2-35.9)/(200-1.7*20) -> 0.1851807229 | J20: 0.1851807229 | K20: / | L20: 0 | M20: 0 | N20: 0 | O20: 0 | Q20: 0 | R20: 0
G22: apports journaliers calculés | L22: =SUM(L8:L20) -> 8.705 | M22: =SUM(M8:M20) -> 555 | N22: 61.45 | O22: 37.61 | P22: Total | Q22: =SUM(Q8:Q20) -> 1.02 | R22: =SUM(R8:R20) -> 1132
G23: apports journaliers recommandés | L23: =INDEX(ufc,MATCH(1,(type=F1)*(niveau=F2)*(poids=F3),0)) -> 8.6 | M23: =INDEX(madc,MATCH(1,(type=F1)*(niveau=F2)*(poids=F3),0)) -> 621 | N23: =INDEX(Ca,MATCH(1,(type=F1)*(niveau=F2)*(poids=F3),0)) -> 48 | O23: =INDEX(p,MATCH(1,(type=F1)*(niveau=F2)*(poids=F3),0)) -> 35
G24: différence | L24: =L22-L23 -> 0.105 | M24: =M22-M23 -> -66 | N24: =N22-N23 -> 13.45 | O24: =O22-O23 -> 2.61
D26: Apports calculés | G26: Recommandations | K26: Différence
B27: Conso de matière sèche | D27: =R22/100 -> 11.32 | G27: =INDEX(msbasse,MATCH(1,(type=F1)*(niveau=F2)*(poids=F3),0)) -> 11.5 | H27: =INDEX(mshaute,MATCH(1,(type=F1)*(niveau=F2)*(poids=F3),0)) -> 14.5
B28: MADC/UF | D28: =M22/L22 -> 63.7564618 | G28: =M23/L23 -> 72.20930233 | K28: =G28-D28 -> 8.452840522
B29: Ca/P | D29: =N22/O22 -> 1.63387397 | G29: =N23/O23 -> 1.371428571 | K29: =G29-D29 -> -0.2624453983

Sheet chev
A1: Races et stade physiologiques
A3: Type | B3: Poids | C3: Niveau | D3: UFC | E3: MADC | F3: Ca | G3: P | H3: MS basse | I3: MS haute
A4: pouliniere | B4: 450 | C4: non_gestante | D4: 3.8 | E4: 274 | F4: 18 | G4: 13 | H4: 6.5 | I4: 8.5
A5: pouliniere | B5: 450 | C5: debut_gestation | D5: 3.8 | E5: 274 | F5: 18 | G5: 13 | H5: 6.5 | I5: 8.5
A6: pouliniere | B6: 450 | C6: gestante_0-5_mois | D6: 3.8 | E6: 274 | F6: 18 | G6: 13 | H6: 6.5 | I6: 8.5
A7: pouliniere | B7: 450 | C7: gestante_6_mois | D7: 4.1 | E7: 330 | F7: 22 | G7: 17 | H7: 6.5 | I7: 9
A8: pouliniere | B8: 450 | C8: gestante_7_mois | D8: 4.3 | E8: 333 | F8: 24 | G8: 18 | H8: 6.5 | I8: 9
A9: pouliniere | B9: 450 | C9: gestante_8_mois | D9: 4.5 | E9: 351 | F9: 26 | G9: 19 | H9: 6.5 | I9: 9
A10: pouliniere | B10: 450 | C10: gestante_9_mois | D10: 4.7 | E10: 382 | F10: 30 | G10: 23 | H10: 7 | I10: 9.5
A11: pouliniere | B11: 450 | C11: gestante_10_mois | D11: 5 | E11: 453 | F11: 34 | G11: 26 | H11: 7 | I11: 10.5
A12: pouliniere | B12: 450 | C12: gestante_11_mois | D12: 5.1 | E12: 485 | F12: 37 | G12: 29 | H12: 7.5 | I12: 11
A13: pouliniere | B13: 450 | C13: allaitante_1_mois | D13: 7.8 | E13: 868 | F13: 50 | G13: 44 | H13: 10.5 | I13: 13.5
A14: pouliniere | B14: 450 | C14: allaitante_2_mois | D14: 7.9 | E14: 838 | F14: 45 | G14: 38 | H14: 11.5 | I14: 14.5
A15: pouliniere | B15: 450 | C15: allaitante_3_mois | D15: 7.4 | E15: 792 | F15: 44 | G15: 37 | H15: 11.5 | I15: 14.5
A16: pouliniere | B16: 450 | C16: allaitante_4_mois | D16: 7 | E16: 653 | F16: 36 | G16: 31 | H16: 10.5 | I16: 13.5
A17: pouliniere | B17: 450 | C17: allaitante_5_mois | D17: 6.1 | E17: 492 | F17: 32 | G17: 27 | H17: 9.5 | I17: 11.5
A18: pouliniere | B18: 450 | C18: allaitante_6_mois | D18: 5.9 | E18: 472 | F18: 31 | G18: 26 | H18: 7.5 | I18: 9.5
A19: pouliniere | B19: 500 | C19: non_gestante | D19: 4.1 | E19: 296 | F19: 20 | G19: 14 | H19: 7 | I19: 9
A20: pouliniere | B20: 500 | C20: debut_gestation | D20: 4.1 | E20: 296 | F20: 20 | G20: 14 | H20: 7 | I20: 9
A21: pouliniere | B21: 500 | C21: gestante_0-5_mois | D21: 4.1 | E21: 296 | F21: 20 | G21: 14 | H21: 7 | I21: 9
A22: pouliniere | B22: 500 | C22: gestante_6_mois | D22: 4.4 | E22: 359 | F22: 25 | G22: 18 | H22: 7 | I22: 9.5
A23: pouliniere | B23: 500 | C23: gestante_7_mois | D23: 4.7 | E23: 361 | F23: 27 | G23: 20 | H23: 7 | I23: 9.5
A24: pouliniere | B24: 500 | C24: gestante_8_mois | D24: 4.9 | E24: 381 | F24: 29 | G24: 21 | H24: 7 | I24: 9.5
A25: pouliniere | B25: 500 | C25: gestante_9_mois | D25: 5.1 | E25: 416 | F25: 34 | G25: 25 | H25: 7.5 | I25: 10
A26: pouliniere | B26: 500 | C26: gestante_10_mois | D26: 5.4 | E26: 495 | F26: 38 | G26: 28 | H26: 7.5 | I26: 11
A27: pouliniere | B27: 500 | C27: gestante_11_mois | D27: 5.5 | E27: 530 | F27: 41 | G27: 32 | H27: 8 | I27: 11.5
A28: pouliniere | B28: 500 | C28: allaitante_1_mois | D28: 8.5 | E28: 956 | F28: 56 | G28: 49 | H28: 11.5 | I28: 15
A29: pouliniere | B29: 500 | C29: allaitante_2_mois | D29: 8.7 | E29: 923 | F29: 50 | G29: 42 | H29: 12.5 | I29: 16
A30: pouliniere | B30: 500 | C30: allaitante_3_mois | D30: 8.2 | E30: 872 | F30: 49 | G30: 41 | H30: 12.5 | I30: 16
A31: pouliniere | B31: 500 | C31: allaitante_4_mois | D31: 7.7 | E31: 717 | F31: 41 | G31: 35 | H31: 11.5 | I31: 15
A32: pouliniere | B32: 500 | C32: allaitante_5_mois | D32: 6.7 | E32: 538 | F32: 36 | G32: 30 | H32: 10.5 | I32: 13
A33: pouliniere | B33: 500 | C33: allaitante_6_mois | D33: 6.5 | E33: 516 | F33: 34 | G33: 28 | H33: 8.5 | I33: 11
A34: pouliniere | B34: 550 | C34: non_gestante | D34: 4.4 | E34: 318 | F34: 22 | G34: 16 | H34: 7.5 | I34: 9.5
A35: pouliniere | B35: 550 | C35: debut_gestation | D35: 4.4 | E35: 318 | F35: 22 | G35: 16 | H35: 7.5 | I35: 9.5
A36: pouliniere | B36: 550 | C36: gestante_0-5_mois | D36: 4.4 | E36: 318 | F36: 22 | G36: 16 | H36: 7.5 | I36: 9.5
A37: pouliniere | B37: 550 | C37: gestante_6_mois | D37: 4.8 | E37: 387 | F37: 28 | G37: 20 | H37: 7.5 | I37: 10
A38: pouliniere | B38: 550 | C38: gestante_7_mois | D38: 5.1 | E38: 390 | F38: 30 | G38: 22 | H38: 7.5 | I38: 10
A39: pouliniere | B39: 550 | C39: gestante_8_mois | D39: 5.3 | E39: 412 | F39: 32 | G39: 24 | H39: 7.5 | I39: 10
A40: pouliniere | B40: 550 | C40: gestante_9_mois | D40: 5.5 | E40: 450 | F40: 37 | G40: 28 | H40: 8 | I40: 10.5
A41: pouliniere | B41: 550 | C41: gestante_10_mois | D41: 5.8 | E41: 537 | F41: 42 | G41: 31 | H41: 8 | I41: 11.5
A42: pouliniere | B42: 550 | C42: gestante_11_mois | D42: 6 | E42: 576 | F42: 46 | G42: 35 | H42: 8 | I42: 12
A43: pouliniere | B43: 550 | C43: allaitante_1_mois | D43: 9.3 | E43: 1044 | F43: 61 | G43: 54 | H43: 12.5 | I43: 16.5
A44: pouliniere | B44: 550 | C44: allaitante_2_mois | D44: 9.5 | E44: 1008 | F44: 55 | G44: 47 | H44: 14 | I44: 17.5
A45: pouliniere | B45: 550 | C45: allaitante_3_mois | D45: 8.9 | E45: 952 | F45: 54 | G45: 46 | H45: 14 | I45: 17.5
A46: pouliniere | B46: 550 | C46: allaitante_4_mois | D46: 8.4 | E46: 781 | F46: 44 | G46: 38 | H46: 12.5 | I46: 16.5
A47: pouliniere | B47: 550 | C47: allaitante_5_mois | D47: 7.4 | E47: 544 | F47: 40 | G47: 33 | H47: 11.5 | I47: 14
A48: pouliniere | B48: 550 | C48: allaitante_6_mois | D48: 7.1 | E48: 560 | F48: 38 | G48: 31 | H48: 9.5 | I48: 12
A49: pouliniere | B49: 600 | C49: non_gestante | D49: 4.8 | E49: 339 | F49: 24 | G49: 17 | H49: 8 | I49: 10
A50: pouliniere | B50: 600 | C50: debut_gestation | D50: 4.8 | E50: 339 | F50: 24 | G50: 17 | H50: 8 | I50: 10
A51: pouliniere | B51: 600 | C51: gestante_0-5_mois | D51: 4.8 | E51: 339 | F51: 24 | G51: 17 | H51: 8 | I51: 10
A52: pouliniere | B52: 600 | C52: gestante_6_mois | D52: 5.2 | E52: 414 | F52: 30 | G52: 22 | H52: 8 | I52: 10.5
A53: pouliniere | B53: 600 | C53: gestante_7_mois | D53: 5.5 | E53: 417 | F53: 33 | G53: 24 | H53: 8 | I53: 10.5
A54: pouliniere | B54: 600 | C54: gestante_8_mois | D54: 5.7 | E54: 441 | F54: 35 | G54: 26 | H54: 8.5 | I54: 10.5
A55: pouliniere | B55: 600 | C55: gestante_9_mois | D55: 6 | E55: 482 | F55: 40 | G55: 30 | H55: 9 | I55: 11
A56: pouliniere | B56: 600 | C56: gestante_10_mois | D56: 6.3 | E56: 578 | F56: 46 | G56: 34 | H56: 9 | I56: 12
A57: pouliniere | B57: 600 | C57: gestante_11_mois | D57: 6.5 | E57: 620 | F57: 50 | G57: 38 | H57: 9.5 | I57: 12.5
A58: pouliniere | B58: 600 | C58: allaitante_1_mois | D58: 10.1 | E58: 1131 | F58: 67 | G58: 58 | H58: 13.5 | I58: 18
A59: pouliniere | B59: 600 | C59: allaitante_2_mois | D59: 10.3 | E59: 1091 | F59: 60 | G59: 51 | H59: 15 | I59: 19
A60: pouliniere | B60: 600 | C60: allaitante_3_mois | D60: 9.6 | E60: 1030 | F60: 59 | G60: 50 | H60: 15 | I60: 19
A61: pouliniere | B61: 600 | C61: allaitante_4_mois | D61: 9.1 | E61: 844 | F61: 48 | G61: 41 | H61: 13.5 | I61: 18
A62: pouliniere | B62: 600 | C62: allaitante_5_mois | D62: 7.9 | E62: 629 | F62: 43 | G62: 36 | H62: 12.5 | I62: 15
A63: pouliniere | B63: 600 | C63: allaitante_6_mois | D63: 7.6 | E63: 603 | F63: 41 | G63: 34 | H63: 10.5 | I63: 13
A64: adulte | B64: 450 | C64: entretien | D64: 3.8 | E64: 247 | F64: 18 | G64: 13 | H64: 7 | I64: 8.5
A65: adulte | B65: 450 | C65: travail_tres_leger | D65: 5 | E65: 360 | F65: 27 | G65: 17 | H65: 8.5 | I65: 9.5
A66: adulte | B66: 450 | C66: travail_leger | D66: 6.6 | E66: 475 | F66: 27 | G66: 17 | H66: 9.5 | I66: 11.5
A67: adulte | B67: 450 | C67: travail_modéré | D67: 7.2 | E67: 518 | F67: 32 | G67: 19 | H67: 10.5 | I67: 12.5
A68: adulte | B68: 450 | C68: travail_intense | D68: 6.8 | E68: 492 | F68: 36 | G68: 26 | H68: 10 | I68: 11.5
A69: adulte | B69: 450 | C69: travail_tres_intense | D69: 7.6 | E69: 547 | F69: 41 | G69: 28 | H69: 10 | I69: 11
A70: adulte | B70: 500 | C70: entretien | D70: 4.1 | E70: 267 | F70: 20 | G70: 14 | H70: 7.5 | I70: 9.5
A71: adulte | B71: 500 | C71: travail_tres_leger | D71: 5.3 | E71: 382 | F71: 30 | G71: 19 | H71: 9 | I71: 10.5
A72: adulte | B72: 500 | C72: travail_leger | D72: 7.1 | E72: 511 | F72: 30 | G72: 19 | H72: 10 | I72: 12.5
A73: adulte | B73: 500 | C73: travail_modéré | D73: 7.8 | E73: 562 | F73: 35 | G73: 21 | H73: 11 | I73: 13.5
A74: adulte | B74: 500 | C74: travail_intense | D74: 7.3 | E74: 526 | F74: 40 | G74: 29 | H74: 10 | I74: 12.5
A75: adulte | B75: 500 | C75: travail_tres_intense | D75: 8.3 | E75: 594 | F75: 45 | G75: 31 | H75: 10 | I75: 12.5
A76: adulte | B76: 550 | C76: entretien | D76: 4.5 | E76: 293 | F76: 22 | G76: 16 | H76: 8.5 | I76: 10.5
A77: adulte | B77: 550 | C77: travail_tres_leger | D77: 5.9 | E77: 424 | F77: 33 | G77: 21 | H77: 9.5 | I77: 11.5
A78: adulte | B78: 550 | C78: travail_leger | D78: 7.8 | E78: 565 | F78: 33 | G78: 21 | H78: 10.5 | I78: 13.5
A79: adulte | B79: 550 | C79: travail_modéré | D79: 8.6 | E79: 620 | F79: 39 | G79: 23 | H79: 11.5 | I79: 15.5
A80: adulte | B80: 550 | C80: travail_intense | D80: 8.1 | E80: 580 | F80: 44 | G80: 32 | H80: 11 | I80: 13.5
A81: adulte | B81: 550 | C81: travail_tres_intense | D81: 9.1 | E81: 656 | F81: 50 | G81: 34 | H81: 11 | I81: 13.5
A82: adulte | B82: 600 | C82: entretien | D82: 4.8 | E82: 312 | F82: 24 | G82: 17 | H82: 9 | I82: 11.5
A83: adulte | B83: 600 | C83: travail_tres_leger | D83: 6.3 | E83: 450 | F83: 36 | G83: 23 | H83: 10.5 | I83: 12.5
A84: adulte | B84: 600 | C84: travail_leger | D84: 8.4 | E84: 603 | F84: 36 | G84: 23 | H84: 11.5 | I84: 14.5
A85: adulte | B85: 600 | C85: travail_modéré | D85: 9.2 | E85: 664 | F85: 42 | G85: 25 | H85: 13 | I85: 16
A86: adulte | B86: 600 | C86: travail_intense | D86: 8.6 | E86: 621 | F86: 48 | G86: 35 | H86: 11.5 | I86: 14.5
A87: adulte | B87: 600 | C87: travail_tres_intense | D87: 9.8 | E87: 703 | F87: 54 | G87: 37 | H87: 11.5 | I87: 14.5
A88: trait | B88: 700 | C88: entretien.. | D88: 5.1 | E88: 357 | F88: 28 | G88: 20 | H88: 9.5 | I88: 10.5
A89: trait | B89: 700 | C89: travail_leger.. | D89: 7.7 | E89: 539 | F89: 42 | G89: 27 | H89: 12 | I89: 13.5
A90: trait | B90: 700 | C90: travail_modéré.. | D90: 8.6 | E90: 602 | F90: 49 | G90: 29 | H90: 13 | I90: 15.5
A91: trait | B91: 700 | C91: travail_intense.. | D91: 10 | E91: 700 | F91: 56 | G91: 41 | H91: 14 | I91: 16.5
A92: trait | B92: 800 | C92: entretien.. | D92: 5.6 | E92: 392 | F92: 32 | G92: 22 | H92: 10.5 | I92: 11.5
A93: trait | B93: 800 | C93: travail_leger.. | D93: 7.8 | E93: 546 | F93: 48 | G93: 30 | H93: 13 | I93: 14.5
A94: trait | B94: 800 | C94: travail_modéré.. | D94: 8.8 | E94: 616 | F94: 56 | G94: 34 | H94: 14 | I94: 16.5
A95: trait | B95: 800 | C95: travail_intense.. | D95: 10.5 | E95: 735 | F95: 64 | G95: 46 | H95: 15 | I95: 17.5
A96: poney | B96: 200 | C96: entretien. | D96: 1.7 | E96: 122 | F96: 8 | G96: 6 | H96: 3 | I96: 3.8
A97: poney | B97: 200 | C97: travail_leger. | D97: 2.8 | E97: 199 | F97: 12 | G97: 8 | H97: 4 | I97: 5
A98: poney | B98: 200 | C98: travail_modéré. | D98: 3 | E98: 219 | F98: 14 | G98: 9 | H98: 4.4 | I98: 5.7
A99: poney | B99: 200 | C99: travail_intense. | D99: 2.8 | E99: 205 | F99: 16 | G99: 12 | H99: 4 | I99: 5
A100: poney | B100: 200 | C100: étalon. | D100: 3.1 | E100: 223 | F100: 14 | G100: 9 | H100: 4.4 | I100: 5.7
A101: poney | B101: 300 | C101: entretien. | D101: 2.4 | E101: 173 | F101: 12 | G101: 8 | H101: 4.5 | I101: 5.7
A102: poney | B102: 300 | C102: travail_leger. | D102: 4 | E102: 286 | F102: 18 | G102: 11 | H102: 6 | I102: 7.5
A103: poney | B103: 300 | C103: travail_modéré. | D103: 4.5 | E103: 324 | F103: 21 | G103: 13 | H103: 6.6 | I103: 8.1
A104: poney | B104: 300 | C104: travail_intense. | D104: 4.2 | E104: 302 | F104: 24 | G104: 17 | H104: 6 | I104: 7.5
A105: poney | B105: 300 | C105: étalon. | D105: 4.5 | E105: 324 | F105: 21 | G105: 13 | H105: 6.6 | I105: 8.1
A106: poney | B106: 400 | C106: entretien. | D106: 3.2 | E106: 230 | F106: 16 | G106: 11 | H106: 6 | I106: 7.6
A107: poney | B107: 400 | C107: travail_leger. | D107: 5.4 | E107: 389 | F107: 24 | G107: 15 | H107: 8 | I107: 10
A108: poney | B108: 400 | C108: travail_modéré. | D108: 6 | E108: 432 | F108: 28 | G108: 17 | H108: 8.8 | I108: 10.8
A109: poney | B109: 400 | C109: travail_intense. | D109: 5.6 | E109: 403 | F109: 32 | G109: 23 | H109: 8 | I109: 10
A110: poney | B110: 400 | C110: étalon. | D110: 5.8 | E110: 418 | F110: 28 | G110: 17 | H110: 8.8 | I110: 10.8
A111: poney_elevage | B111: 200 | C111: croissance__6_12_mois_p | D111: 1.9 | E111: 217 | F111: 13 | G111: 9 | H111: 2.5 | I111: 3.5
A112: poney_elevage | B112: 200 | C112: croissance_18_24_mois_p | D112: 2.3 | E112: 133 | F112: 15 | G112: 10 | H112: 3.5 | I112: 4
A113: poney_elevage | B113: 200 | C113: croissance_30_36_mois_p | D113: 2.5 | E113: 125 | F113: 16 | G113: 11 | H113: 4 | I113: 5
A114: poney_elevage | B114: 300 | C114: croissance__6_12_mois_p | D114: 2.7 | E114: 304 | F114: 19 | G114: 13 | H114: 4 | I114: 5
A115: poney_elevage | B115: 300 | C115: croissance_18_24_mois_p | D115: 3.4 | E115: 203 | F115: 22 | G115: 15 | H115: 5 | I115: 6
A116: poney_elevage | B116: 300 | C116: croissance_30_36_mois_p | D116: 3.7 | E116: 192 | F116: 24 | G116: 16 | H116: 5.5 | I116: 6.5
A117: poney_elevage | B117: 400 | C117: croissance__6_12_mois_p | D117: 3.6 | E117: 388 | F117: 25 | G117: 18 | H117: 5 | I117: 6.5
A118: poney_elevage | B118: 400 | C118: croissance_18_24_mois_p | D118: 4.5 | E118: 265 | F118: 29 | G118: 20 | H118: 6.5 | I118: 7.5
A119: poney_elevage | B119: 400 | C119: croissance_30_36_mois_p | D119: 4.9 | E119: 255 | F119: 32 | G119: 21 | H119: 7 | I119: 8
A120: cheval_sport_elevage | B120: 450 | C120: croissance_3_6_mois | D120: 3.6 | E120: 372 | F120: 25 | G120: 17 | H120: 4 | I120: 6
A121: cheval_sport_elevage | B121: 450 | C121: croissance_6_12_mois | D121: 3.9 | E121: 378 | F121: 26 | G121: 18 | H121: 5.5 | I121: 7.5
A122: cheval_sport_elevage | B122: 450 | C122: croissance_18_24_mois | D122: 5.3 | E122: 310 | F122: 35 | G122: 24 | H122: 7.5 | I122: 9.5
A123: cheval_sport_elevage | B123: 450 | C123: croissance_30_36_mois | D123: 5.7 | E123: 288 | F123: 35 | G123: 24 | H123: 8 | I123: 10
A124: cheval_sport_elevage | B124: 450 | C124: croissance_36_42_mois | D124: 5.8 | E124: 292 | F124: 36 | G124: 24 | H124: 9 | I124: 11
A125: cheval_sport_elevage | B125: 500 | C125: croissance_3_6_mois | D125: 4 | E125: 415 | F125: 29 | G125: 19 | H125: 4.5 | I125: 6.5
A126: cheval_sport_elevage | B126: 500 | C126: croissance_6_12_mois | D126: 4.3 | E126: 425 | F126: 29 | G126: 20 | H126: 6 | I126: 8
A127: cheval_sport_elevage | B127: 500 | C127: croissance_18_24_mois | D127: 5.9 | E127: 344 | F127: 40 | G127: 27 | H127: 8 | I127: 10.5
A128: cheval_sport_elevage | B128: 500 | C128: croissance_30_36_mois | D128: 6.2 | E128: 308 | F128: 39 | G128: 26 | H128: 8.5 | I128: 11
A129: cheval_sport_elevage | B129: 500 | C129: croissance_36_42_mois | D129: 6.3 | E129: 315 | F129: 40 | G129: 27 | H129: 9.5 | I129: 12
A130: cheval_sport_elevage | B130: 550 | C130: croissance_3_6_mois | D130: 4.4 | E130: 456 | F130: 31 | G130: 21 | H130: 5 | I130: 7
A131: cheval_sport_elevage | B131: 550 | C131: croissance_6_12_mois | D131: 4.4 | E131: 461 | F131: 32 | G131: 22 | H131: 6.5 | I131: 8.5
A132: cheval_sport_elevage | B132: 550 | C132: croissance_18_24_mois | D132: 6.4 | E132: 369 | F132: 45 | G132: 30 | H132: 8.5 | I132: 11
A133: cheval_sport_elevage | B133: 550 | C133: croissance_30_36_mois | D133: 6.6 | E133: 329 | F133: 42 | G133: 29 | H133: 9.5 | I133: 12
A134: cheval_sport_elevage | B134: 550 | C134: croissance_36_42_mois | D134: 6.5 | E134: 337 | F134: 43 | G134: 29 | H134: 11 | I134: 13.5
A135: cheval_sport_elevage | B135: 600 | C135: croissance_3_6_mois | D135: 4.8 | E135: 497 | F135: 35 | G135: 23 | H135: 5.5 | I135: 7.5
A136: cheval_sport_elevage | B136: 600 | C136: croissance_6_12_mois | D136: 5 | E136: 496 | F136: 35 | G136: 24 | H136: 7.5 | I136: 9.5
A137: cheval_sport_elevage | B137: 600 | C137: croissance_18_24_mois | D137: 6.9 | E137: 394 | F137: 47 | G137: 32 | H137: 9.5 | I137: 12
A138: cheval_sport_elevage | B138: 600 | C138: croissance_30_36_mois | D138: 7 | E138: 350 | F138: 45 | G138: 31 | H138: 10 | I138: 12.5
A139: cheval_sport_elevage | B139: 600 | C139: croissance_36_42_mois | D139: 7.2 | E139: 358 | F139: 47 | G139: 32 | H139: 12 | I139: 14.5
A140: cheval_course_elevage | B140: 450 | C140: croissance_3_6_mois. | D140: 4.5 | E140: 486 | F140: 32 | G140: 22 | H140: 4.5 | I140: 6.5
A141: cheval_course_elevage | B141: 450 | C141: croissance_6_12_mois. | D141: 4.6 | E141: 501 | F141: 33 | G141: 22 | H141: 6 | I141: 8
A142: cheval_course_elevage | B142: 450 | C142: croissance_18_24_mois. | D142: 5.6 | E142: 300 | F142: 33 | G142: 24 | H142: 8 | I142: 10
A143: cheval_course_elevage | B143: 450 | C143: croissance_30_36_mois. | D143: 5.8 | E143: 301 | F143: 38 | G143: 25 | H143: 9 | I143: 11
A144: cheval_course_elevage | B144: 500 | C144: croissance_3_6_mois. | D144: 5 | E144: 541 | F144: 36 | G144: 24 | H144: 5 | I144: 7
A145: cheval_course_elevage | B145: 500 | C145: croissance_6_12_mois. | D145: 5.1 | E145: 567 | F145: 37 | G145: 25 | H145: 6.5 | I145: 8.5
A146: cheval_course_elevage | B146: 500 | C146: croissance_18_24_mois. | D146: 6.1 | E146: 331 | F146: 38 | G146: 27 | H146: 8.5 | I146: 11
A147: cheval_course_elevage | B147: 500 | C147: croissance_30_36_mois. | D147: 6.4 | E147: 335 | F147: 44 | G147: 29 | H147: 9.5 | I147: 12
A148: cheval_course_elevage | B148: 550 | C148: croissance_3_6_mois. | D148: 5.5 | E148: 595 | F148: 40 | G148: 27 | H148: 5.5 | I148: 7.5
A149: cheval_course_elevage | B149: 550 | C149: croissance_6_12_mois. | D149: 5.5 | E149: 591 | F149: 39 | G149: 27 | H149: 7 | I149: 9
A150: cheval_course_elevage | B150: 550 | C150: croissance_18_24_mois. | D150: 6.6 | E150: 360 | F150: 44 | G150: 30 | H150: 9 | I150: 11.5
A151: cheval_course_elevage | B151: 550 | C151: croissance_30_36_mois. | D151: 7 | E151: 371 | F151: 51 | G151: 32 | H151: 11 | I151: 13.5
A152: cheval_course_elevage | B152: 600 | C152: croissance_3_6_mois. | D152: 6 | E152: 647 | F152: 44 | G152: 29 | H152: 6 | I152: 8
A153: cheval_course_elevage | B153: 600 | C153: croissance_6_12_mois. | D153: 6 | E153: 661 | F153: 43 | G153: 30 | H153: 8 | I153: 10
A154: cheval_course_elevage | B154: 600 | C154: croissance_18_24_mois. | D154: 7.1 | E154: 388 | F154: 48 | G154: 33 | H154: 10 | I154: 12.5
A155: cheval_course_elevage | B155: 600 | C155: croissance_30_36_mois. | D155: 7.5 | E155: 406 | F155: 57 | G155: 36 | H155: 12 | I155: 14.5
A156: poney_poulinière. | B156: 200 | C156: non_gestante. | D156: 1.7 | E156: 122 | F156: 8 | G156: 6 | H156: 3.2 | I156: 4.2
A157: poney_poulinière. | B157: 200 | C157: debut_gestation. | D157: 1.7 | E157: 122 | F157: 8 | G157: 6 | H157: 3.2 | I157: 4.2
A158: poney_poulinière. | B158: 200 | C158: gestante_0-5_mois. | D158: 1.7 | E158: 122 | F158: 8 | G158: 6 | H158: 3.2 | I158: 4.2
A159: poney_poulinière. | B159: 200 | C159: gestante_6_mois. | D159: 1.8 | E159: 147 | F159: 10 | G159: 8 | H159: 3.2 | I159: 4.5
A160: poney_poulinière. | B160: 200 | C160: gestante_7_mois. | D160: 1.9 | E160: 148 | F160: 11 | G160: 8 | H160: 3.2 | I160: 4.5
A161: poney_poulinière. | B161: 200 | C161: gestante_8_mois. | D161: 2 | E161: 156 | F161: 12 | G161: 9 | H161: 3.2 | I161: 4.5
A162: poney_poulinière. | B162: 200 | C162: gestante_9_mois. | D162: 2.1 | E162: 170 | F162: 14 | G162: 10 | H162: 3.5 | I162: 4.8
A163: poney_poulinière. | B163: 200 | C163: gestante_10_mois. | D163: 2.2 | E163: 202 | F163: 15 | G163: 12 | H163: 3.5 | I163: 5
A164: poney_poulinière. | B164: 200 | C164: gestante_11_mois. | D164: 2.3 | E164: 216 | F164: 17 | G164: 13 | H164: 3.8 | I164: 5.2
A165: poney_poulinière. | B165: 200 | C165: allaitante_1_mois. | D165: 3.5 | E165: 386 | F165: 22 | G165: 20 | H165: 5 | I165: 6.6
A166: poney_poulinière. | B166: 200 | C166: allaitante_2_mois. | D166: 3.6 | E166: 373 | F166: 20 | G166: 17 | H166: 5.3 | I166: 6.9
A167: poney_poulinière. | B167: 200 | C167: allaitante_3_mois. | D167: 3.3 | E167: 352 | F167: 20 | G167: 17 | H167: 5.3 | I167: 6.9
A168: poney_poulinière. | B168: 200 | C168: allaitante_4_mois. | D168: 3.1 | E168: 290 | F168: 16 | G168: 14 | H168: 5 | I168: 6.6
A169: poney_poulinière. | B169: 200 | C169: allaitante_5_mois. | D169: 2.7 | E169: 219 | F169: 14 | G169: 12 | H169: 4.5 | I169: 6
A170: poney_poulinière. | B170: 200 | C170: allaitante_6_mois. | D170: 2.6 | E170: 210 | F170: 14 | G170: 12 | H170: 3.8 | I170: 5
A171: poney_poulinière. | B171: 300 | C171: non_gestante. | D171: 2.4 | E171: 173 | F171: 15 | G171: 12 | H171: 4.8 | I171: 6.3
A172: poney_poulinière. | B172: 300 | C172: debut_gestation. | D172: 2.4 | E172: 173 | F172: 15 | G172: 12 | H172: 4.8 | I172: 6.3
A173: poney_poulinière. | B173: 300 | C173: gestante_0-5_mois. | D173: 2.4 | E173: 173 | F173: 15 | G173: 12 | H173: 4.8 | I173: 6.3
A174: poney_poulinière. | B174: 300 | C174: gestante_6_mois. | D174: 2.6 | E174: 211 | F174: 15 | G174: 12 | H174: 5.1 | I174: 6.5
A175: poney_poulinière. | B175: 300 | C175: gestante_7_mois. | D175: 2.7 | E175: 212 | F175: 16 | G175: 12 | H175: 5.1 | I175: 6.5
A176: poney_poulinière. | B176: 300 | C176: gestante_8_mois. | D176: 2.9 | E176: 224 | F176: 18 | G176: 12 | H176: 5.1 | I176: 6.5
A177: poney_poulinière. | B177: 300 | C177: gestante_9_mois. | D177: 3 | E177: 245 | F177: 20 | G177: 15 | H177: 5.4 | I177: 6.8
A178: poney_poulinière. | B178: 300 | C178: gestante_10_mois. | D178: 3.2 | E178: 292 | F178: 22 | G178: 17 | H178: 5.4 | I178: 7.3
A179: poney_poulinière. | B179: 300 | C179: gestante_11_mois. | D179: 3.3 | E179: 313 | F179: 25 | G179: 19 | H179: 5.7 | I179: 7.8
A180: poney_poulinière. | B180: 300 | C180: allaitante_1_mois. | D180: 5 | E180: 497 | F180: 34 | G180: 29 | H180: 7.2 | I180: 9.6
A181: poney_poulinière. | B181: 300 | C181: allaitante_2_mois. | D181: 5.1 | E181: 549 | F181: 30 | G181: 25 | H181: 7.5 | I181: 9.9
A182: poney_poulinière. | B182: 300 | C182: allaitante_3_mois. | D182: 4.8 | E182: 519 | F182: 29 | G182: 24 | H182: 7.5 | I182: 9.9
A183: poney_poulinière. | B183: 300 | C183: allaitante_4_mois. | D183: 4.5 | E183: 425 | F183: 24 | G183: 20 | H183: 7.2 | I183: 8.9
A184: poney_poulinière. | B184: 300 | C184: allaitante_5_mois. | D184: 3.9 | E184: 318 | F184: 21 | G184: 17 | H184: 6.7 | I184: 7.9
A185: poney_poulinière. | B185: 300 | C185: allaitante_6_mois. | D185: 3.8 | E185: 305 | F185: 20 | G185: 16 | H185: 5.7 | I185: 7.2
A186: poney_poulinière. | B186: 400 | C186: non_gestante. | D186: 3.2 | E186: 230 | F186: 16 | G186: 11 | H186: 6 | I186: 8
A187: poney_poulinière. | B187: 400 | C187: debut_gestation. | D187: 3.2 | E187: 230 | F187: 16 | G187: 11 | H187: 6 | I187: 8
A188: poney_poulinière. | B188: 400 | C188: gestante_0-5_mois. | D188: 3.2 | E188: 230 | F188: 16 | G188: 11 | H188: 6 | I188: 8
A189: poney_poulinière. | B189: 400 | C189: gestante_6_mois. | D189: 3.4 | E189: 280 | F189: 20 | G189: 14 | H189: 6 | I189: 8.5
A190: poney_poulinière. | B190: 400 | C190: gestante_7_mois. | D190: 3.6 | E190: 282 | F190: 22 | G190: 16 | H190: 6 | I190: 8.5
A191: poney_poulinière. | B191: 400 | C191: gestante_8_mois. | D191: 3.8 | E191: 298 | F191: 23 | G191: 17 | H191: 6 | I191: 8.5
A192: poney_poulinière. | B192: 400 | C192: gestante_9_mois. | D192: 4 | E192: 326 | F192: 27 | G192: 20 | H192: 6.5 | I192: 9
A193: poney_poulinière. | B193: 400 | C193: gestante_10_mois. | D193: 4.2 | E193: 389 | F193: 31 | G193: 22 | H193: 7 | I193: 9.5
A194: poney_poulinière. | B194: 400 | C194: gestante_11_mois. | D194: 4.3 | E194: 417 | F194: 33 | G194: 25 | H194: 7.5 | I194: 10
A195: poney_poulinière. | B195: 400 | C195: allaitante_1_mois. | D195: 6.7 | E195: 758 | F195: 45 | G195: 39 | H195: 9.5 | I195: 12.5
A196: poney_poulinière. | B196: 400 | C196: allaitante_2_mois. | D196: 6.8 | E196: 732 | F196: 40 | G196: 33 | H196: 10.5 | I196: 13.5
A197: poney_poulinière. | B197: 400 | C197: allaitante_3_mois. | D197: 6.4 | E197: 691 | F197: 39 | G197: 33 | H197: 10.5 | I197: 13.5
A198: poney_poulinière. | B198: 400 | C198: allaitante_4_mois. | D198: 6 | E198: 566 | F198: 32 | G198: 27 | H198: 9.5 | I198: 12.5
A199: poney_poulinière. | B199: 400 | C199: allaitante_5_mois. | D199: 5.2 | E199: 424 | F199: 28 | G199: 23 | H199: 8 | I199: 10.5
A200: poney_poulinière. | B200: 400 | C200: allaitante_6_mois. | D200: 5.1 | E200: 406 | F200: 27 | G200: 22 | H200: 7 | I200: 9
E204: pouliniere | F204: adulte | G204: poney | H204: poney_poulinière. | I204: cheval_sport_elevage | J204: trait | K204: cheval_course_elevage | L204: poney_elevage
... 75 more rows

Sheet calculette UFC MADC
A4: Saisie valeurs analytiques de l'aliment | F4: Valeurs calculées
A7: Humidité | B7: 11.5 | F7: UFC/kg de produit brut | G7: =(132.6-0.1937*B8/(1-B7/100)/((100-B9/(1-B7/100))/100)*10-0.0135*B10/(1-B7/100)/((100-B9/(1-B7/100))/100)*10)*((100-B9/(1-B7/100))/100)*(1-B7/100)/100+(IF((B11/(1-B7/100)/((100-B9/(1-B7/100))/100))>3.5,((B11/(1-B7/100)/((100-B9/(1-B7/100))/100))-3.5)*0.02,0))*((100-B9/(1-B7/100))/100)*(1-B7/100) -> 0.765005
A8: Cellulose brute | B8: 15
A9: Cendre brute | B9: 8 | F9: MADC/kg de produit brut | G9: =((-4.94+(0.9133*B13))*0.85)*((100-B7)/100) -> 86.06620474
A10: Matière protéique | B10: 11.5
A11: Matière grasse | B11: 3
A13: MAT | B13: =B10/((100-12)/100)*10 -> 130.6818182

Sheet Sheet2
A3: Si rapport MADC/UFC >100
B4: MADC/UFC | C4: UFC | E4: MADC/UFC du mélange recherché : | I4: =Feuil1!M24/Feuil1!L24 -> -628.5714286
A5: Choisir la céréale :
A6: Orge aplatie | B6: =IF(A6=0,0,VLOOKUP(A6,rat!$B$32:$M$50,9,0)) -> 71 | C6: =IF(A6=0,0,VLOOKUP(A6,rat!$B$32:$M$50,8,0)) -> 0.99 | E6: Proportion mélange calculé :
E8: =A6 -> Orge aplatie | G8: =A14/A16 -> 0.4919136113 | H8: =A11 -> Luzerne dehy 17 | J8: =A15/A16 -> 0.5080863887
A10: Choisir l'aliment azoté : | E10: Pour équilibrer la ration il faudra donc apporter en complément du foin :
A11: Luzerne dehy 17 | B11: =IF(A11=0,0,VLOOKUP(A11,rat!$B$32:$M$50,9,0)) -> 94 | C11: =IF(A11=0,0,VLOOKUP(A11,rat!$B$32:$M$50,8,0)) -> 0.54
E12: =A6 -> Orge aplatie | G12: =A18*G8 -> 0.06784025015 | H12: =A11 -> Luzerne dehy 17 | J12: =A18*J8 -> 0.0700706525
A14: =B6-I4 -> 699.5714286
A15: =B11-I4 -> 722.5714286
A16: =A14+A15 -> 1422.142857
A17: =(C6*G8)+(C11*J8) -> 0.7613611251
A18: =Feuil1!L24/Sheet2!A17 -> 0.1379109026
